fUST/lending_fUST_20240929
["ID","MTS","AMOUNT","RATE_DAILY","PERIOD"]
[339421641,1727603557046,-500.0,0.00020547,2]
[339421642,1727603557056,-500.0,0.00020547,2]
[339421643,1727603557067,-990.62,0.00020547,2]
[339421644,1727603557077,-500.0,0.00020547,2]
[339421645,1727603557088,-500.0,0.00020547,2]
[339421646,1727603557098,-500.0,0.00020547,2]
[339421647,1727603557108,-595.36,0.00020547,2]
[339421648,1727603557119,-500.0,0.00020547,2]
[339421649,1727603557129,-500.0,0.00020547,2]
[339421650,1727603557139,-500.0,0.00020547,2]
[339421651,1727603557151,-500.0,0.00020547,2]
[339421652,1727603557162,-865.69,0.00020547,2]
[339421653,1727603557174,-500.0,0.00020547,2]
[339421654,1727603557185,-500.0,0.00020547,2]
[339421655,1727603557197,-500.0,0.00020547,2]
[339421656,1727603557207,-677.83,0.00020547,2]
[339421657,1727603557218,-500.0,0.00020547,2]
[339421658,1727603557228,-616.29,0.00020547,2]
[339421659,1727603557239,-500.0,0.00020547,2]
[339421660,1727603557251,-483.64426345,0.00020547,2]
[339421661,1727603557262,-500.0,0.00020547,2]
[339421662,1727603557272,-500.0,0.00020547,2]
[339421663,1727603557282,-500.0,0.00020547,2]
[339421664,1727603557293,-707.0,0.00020547,2]
[339421665,1727603557303,-578.16,0.00020547,2]
[339421666,1727603557314,-1727.88,0.00020547,2]
[339421667,1727603557325,-500.0,0.00020547,2]
[339421668,1727603557335,-455.55980979,0.00020547,2]
[339421669,1727603557345,-500.0,0.00020547,2]
[339421670,1727603557356,-572.72849575,0.00020547,2]
[339421671,1727603557367,-500.0,0.00020547,2]
[339421672,1727603557379,-500.0,0.00020547,2]
[339421673,1727603557389,-1110.92,0.00020547,2]
[339421674,1727603557401,-594.03,0.00020547,2]
[339421675,1727603557412,-590.19,0.00020547,2]
[339421676,1727603557423,-500.0,0.00020547,2]
[339421677,1727603557434,-500.0,0.00020547,2]
[339421678,1727603557445,-570.86708911,0.00020547,2]
[339421679,1727603557456,-500.0,0.00020547,2]
[339421680,1727603557467,-500.0,0.00020547,2]
[339421681,1727603557478,-500.0,0.00020547,2]
[339421682,1727603557490,-500.0,0.00020547,2]
[339421683,1727603557501,-830.63,0.00020547,2]
[339421684,1727603557512,-500.0,0.00020547,2]
[339421685,1727603557523,-500.0,0.00020547,2]
[339421686,1727603557534,-506.3,0.00020547,2]
[339421687,1727603557546,-594.43,0.00020547,2]
[339421688,1727603557557,-2841.86,0.00020547,2]
[339421689,1727603557567,-828.86,0.00020547,2]
[339421690,1727603557578,-500.0,0.00020547,2]
[339421691,1727603557588,-528.25,0.00020547,2]
[339421692,1727603557600,-1889.69,0.00020547,2]
[339421693,1727603557611,-500.0,0.00020547,2]
[339421694,1727603557622,-1014.76,0.00020547,2]
[339421695,1727603557632,-500.0,0.00020547,2]
[339421696,1727603557643,-500.0,0.00020547,2]
[339421697,1727603557654,-500.0,0.00020547,2]
[339421698,1727603557665,-500.0,0.00020547,2]
[339421699,1727603557677,-500.0,0.00020547,2]
[339421700,1727603557689,-890.12,0.00020547,2]
[339421701,1727603557700,-500.0,0.00020547,2]
[339421702,1727603557711,-500.0,0.00020547,2]
[339421703,1727603557722,-500.0,0.00020547,2]
[339421704,1727603557734,-500.0,0.00020547,2]
[339421705,1727603557745,-500.0,0.00020547,2]
[339421706,1727603557756,-500.0,0.00020547,2]
[339421707,1727603557768,-500.0,0.00020547,2]
[339421708,1727603557779,-500.0,0.00020547,2]
[339421709,1727603557793,-779.79,0.00020547,2]
[339421710,1727603557805,-603.33,0.00020547,2]
[339421711,1727603557817,-500.0,0.00020547,2]
[339421712,1727603557829,-500.0,0.00020547,2]
[339421713,1727603557843,-243.9988253,0.00020547,2]
[339421714,1727603557855,-569.86,0.00020547,2]
[339421715,1727603557867,-500.0,0.00020547,2]
[339421716,1727603557879,-500.0,0.00020547,2]
[339421717,1727603557893,-500.0,0.00020547,2]
[339421718,1727603557904,-663.18,0.00020547,2]
[339421719,1727603557915,-500.0,0.00020547,2]
[339421720,1727603557926,-500.0,0.00020547,2]
[339421721,1727603557937,-500.0,0.00020547,2]
[339421722,1727603557948,-500.0,0.00020547,2]
[339421723,1727603557959,-500.0,0.00020547,2]
[339421724,1727603557970,-500.0,0.00020547,2]
[339421725,1727603557982,-500.0,0.00020547,2]
[339421726,1727603557993,-500.0,0.00020547,2]
[339421727,1727603558004,-728.26,0.00020547,2]
[339421728,1727603558015,-500.0,0.00020547,2]
[339421729,1727603558028,-500.0,0.00020547,2]
[339421730,1727603558041,-500.0,0.00020547,2]
[339421731,1727603558054,-509.76633647,0.00020547,2]
[339421732,1727603558068,-1894.2,0.00020547,2]
[339421733,1727603558079,-551.28,0.00020547,2]
[339421734,1727603558092,-500.0,0.00020547,2]
[339421735,1727603558105,-500.0,0.00020547,2]
[339421736,1727603558120,-840.49,0.00020547,2]
[339421737,1727603558133,-500.0,0.00020547,2]
[339421738,1727603558144,-817.32,0.00020547,2]
[339421739,1727603558155,-518.88,0.00020547,2]
[339421740,1727603558167,-500.0,0.00020547,2]
[339421741,1727603558181,-500.0,0.00020547,2]
[339421742,1727603558192,-512.42762132,0.00020547,2]
[339421743,1727603558205,-544.1,0.00020547,2]
[339421744,1727603558216,-500.0,0.00020547,2]
[339421745,1727603558228,-1517.15,0.00020547,2]
[339421746,1727603558239,-1770.33,0.00020547,2]
[339421747,1727603558252,-500.0,0.00020547,2]
[339421748,1727603558263,-563.27,0.00020547,2]
[339421749,1727603558274,-500.0,0.00020547,2]
[339421750,1727603558286,-500.0,0.00020547,2]
[339421751,1727603558297,-658.78,0.00020547,2]
[339421752,1727603558308,-793.0,0.00020547,2]
[339421753,1727603558321,-500.0,0.00020547,2]
[339421754,1727603558332,-816.02,0.00020547,2]
[339421755,1727603558344,-500.0,0.00020547,2]
[339421756,1727603558354,-526.50195621,0.00020547,2]
[339421757,1727603558365,-177.43371244,0.00020547,2]
[339421758,1727603558377,-500.0,0.00020547,2]
[339421759,1727603558388,-500.0,0.00020547,2]
[339421760,1727603558399,-500.0,0.00020547,2]
[339421761,1727603558410,-500.0,0.00020547,2]
[339421762,1727603558421,-500.0,0.00020547,2]
[339421763,1727603558432,-500.0,0.00020547,2]
[339421764,1727603558443,-500.0,0.00020547,2]
[339421765,1727603558454,-522.78,0.00020547,2]
[339421766,1727603558465,-673.9,0.00020547,2]
[339421767,1727603558476,-582.94,0.00020547,2]
[339421768,1727603558486,-1269.53,0.00020547,2]
[339421769,1727603558497,-500.0,0.00020547,2]
[339421770,1727603558508,-983.6,0.00020547,2]
[339421771,1727603558519,-500.0,0.00020547,2]
[339421772,1727603558531,-500.0,0.00020547,2]
[339421773,1727603558542,-500.0,0.00020547,2]
[339421774,1727603558555,-634.9,0.00020547,2]
[339421775,1727603558851,-884.39,0.00020547,2]
[339421776,1727603558864,-500.0,0.00020547,2]
[339421777,1727603558874,-500.0,0.00020547,2]
[339421778,1727603558885,-500.0,0.00020547,2]
[339421779,1727603558896,-500.0,0.00020547,2]
[339421780,1727603558905,-541.91,0.00020547,2]
[339421781,1727603558914,-500.0,0.00020547,2]
[339421782,1727603558924,-500.0,0.00020547,2]
[339421783,1727603558934,-537.32,0.00020547,2]
[339421784,1727603558944,-500.0,0.00020547,2]
[339421785,1727603558954,-521.86,0.00020547,2]
[339421786,1727603558965,-515.37,0.00020547,2]
[339421787,1727603558977,-500.0,0.00020547,2]
[339421788,1727603558990,-500.0,0.00020547,2]
[339421789,1727603559000,-595.6,0.00020547,2]
[339421790,1727603559010,-570.19,0.00020547,2]
[339421791,1727603559020,-234.70514815,0.00020547,2]
[339421792,1727603559030,-582.28,0.00020547,2]
[339421793,1727603559040,-500.0,0.00020547,2]
[339421794,1727603559049,-514.45,0.00020547,2]
[339421795,1727603559059,-1036.21,0.00020547,2]
[339421796,1727603559070,-1058.66,0.00020547,2]
[339421797,1727603559080,-557.02,0.00020547,2]
[339421798,1727603559090,-1629.84,0.00020547,2]
[339421799,1727603559101,-200.0,0.00020547,2]
[339421800,1727603559111,-619.24,0.00020547,2]
[339421801,1727603559121,-1619.76,0.00020547,2]
[339421802,1727603559131,-717.59,0.00020547,2]
[339421803,1727603559141,-500.0,0.00020547,2]
[339421804,1727603559150,-500.0,0.00020547,2]
[339421805,1727603559160,-500.0,0.00020547,2]
[339421806,1727603559170,-19498.11,0.00020547,2]
[339421807,1727603559181,-500.0,0.00020547,2]
[339421808,1727603559191,-288.23640829,0.00020547,2]
[339421809,1727603559201,-500.0,0.00020547,2]
[339421810,1727603559211,-500.0,0.00020547,2]
[339421811,1727603559221,-500.0,0.00020547,2]
[339421812,1727603559230,-509.55,0.00020547,2]
[339421813,1727603559240,-500.0,0.00020547,2]
[339421814,1727603559250,-2421.16,0.00020547,2]
[339421815,1727603559260,-2940.12,0.00020547,2]
[339421816,1727603559270,-500.0,0.00020547,2]
[339421817,1727603559280,-500.0,0.00020547,2]
[339421818,1727603559290,-500.0,0.00020547,2]
[339421819,1727603559300,-500.0,0.00020547,2]
[339421820,1727603559310,-1283.44,0.00020547,2]
[339421821,1727603559321,-500.0,0.00020547,2]
[339421822,1727603559331,-500.0,0.00020547,2]
[339421823,1727603559341,-500.0,0.00020547,2]
[339421824,1727603559351,-500.0,0.00020547,2]
[339421825,1727603559361,-950.67,0.00020547,2]
[339421826,1727603559372,-1372.58,0.00020547,2]
[339421827,1727603559382,-687.65,0.00020547,2]
[339421828,1727603559392,-500.0,0.00020547,2]
[339421829,1727603559402,-500.0,0.00020547,2]
[339421830,1727603559412,-907.2,0.00020547,2]
[339421831,1727603559422,-500.0,0.00020547,2]
[339421832,1727603559432,-1445.57,0.00020547,2]
[339421833,1727603559442,-500.0,0.00020547,2]
[339421834,1727603559452,-500.0,0.00020547,2]
[339421835,1727603559462,-542.45,0.00020547,2]
[339421836,1727603559472,-500.0,0.00020547,2]
[339421837,1727603559482,-500.0,0.00020547,2]
[339421838,1727603559492,-500.0,0.00020547,2]
[339421839,1727603559503,-500.0,0.00020547,2]
[339421840,1727603559513,-500.0,0.00020547,2]
[339421841,1727603559523,-500.0,0.00020547,2]
[339421842,1727603559534,-500.0,0.00020547,2]
[339421843,1727603559545,-500.0,0.00020547,2]
[339421844,1727603559556,-500.0,0.00020547,2]
[339421845,1727603559567,-600.51,0.00020547,2]
[339421846,1727603559577,-448.87741145,0.00020547,2]
[339421847,1727603559586,-500.0,0.00020547,2]
[339421848,1727603559596,-1803.8,0.00020547,2]
[339421849,1727603559607,-500.0,0.00020547,2]
[339421850,1727603559619,-500.0,0.00020547,2]
[339421851,1727603559629,-500.0,0.00020547,2]
[339421852,1727603559640,-500.0,0.00020547,2]
[339421853,1727603559653,-500.0,0.00020547,2]
[339421854,1727603559665,-500.0,0.00020547,2]
[339421855,1727603559675,-500.0,0.00020547,2]
[339421856,1727603559687,-4201.32,0.00020547,2]
[339421857,1727603559698,-500.0,0.00020547,2]
[339421858,1727603559709,-500.0,0.00020547,2]
[339421859,1727603559719,-500.0,0.00020547,2]
[339421860,1727603559730,-500.0,0.00020547,2]
[339421861,1727603559742,-500.0,0.00020547,2]
[339421862,1727603559755,-500.0,0.00020547,2]
[339421863,1727603559766,-500.0,0.00020547,2]
[339421864,1727603559776,-500.0,0.00020547,2]
[339421865,1727603559787,-500.0,0.00020547,2]
[339421866,1727603559800,-500.0,0.00020547,2]
[339421867,1727603559811,-500.0,0.00020547,2]
[339421868,1727603559821,-656.12,0.00020547,2]
[339421869,1727603559831,-500.0,0.00020547,2]
[339421870,1727603559842,-586.58722173,0.00020547,2]
[339421871,1727603559855,-500.0,0.00020547,2]
[339421872,1727603559867,-500.0,0.00020547,2]
[339421873,1727603559881,-500.0,0.00020547,2]
[339421874,1727603559891,-500.0,0.00020547,2]
[339421875,1727603559902,-500.0,0.00020547,2]
[339421876,1727603559914,-500.0,0.00020547,2]
[339421877,1727603559926,-845.95,0.00020547,2]
[339421878,1727603559936,-500.0,0.00020547,2]
[339421879,1727603559947,-530.7,0.00020547,2]
[339421880,1727603559958,-647.24190758,0.00020547,2]
[339421881,1727603559969,-706.63,0.00020547,2]
[339421882,1727603559981,-944.6,0.00020547,2]
[339421883,1727603559992,-500.0,0.00020547,2]
[339421884,1727603560004,-822.81,0.00020547,2]
[339421885,1727603560017,-500.0,0.00020547,2]
[339421886,1727603560029,-512.69,0.00020547,2]
[339421887,1727603560040,-500.0,0.00020547,2]
[339421888,1727603560050,-500.0,0.00020547,2]
[339421889,1727603560059,-500.0,0.00020547,2]
[339421890,1727603560074,-740.56,0.00020547,2]
[339421891,1727603560085,-500.0,0.00020547,2]
[339421892,1727603560095,-2084.73,0.00020547,2]
[339421893,1727603560105,-500.0,0.00020547,2]
[339421894,1727603560118,-500.0,0.00020547,2]
[339421895,1727603560127,-500.0,0.00020547,2]
[339421896,1727603560137,-500.0,0.00020547,2]
[339421897,1727603560146,-500.0,0.00020547,2]
[339421898,1727603560158,-500.0,0.00020547,2]
[339421899,1727603560171,-500.0,0.00020547,2]
[339421900,1727603560182,-500.0,0.00020547,2]
[339421901,1727603560192,-632.66,0.00020547,2]
[339421902,1727603560204,-536.50268791,0.00020547,2]
[339421903,1727603560214,-500.0,0.00020547,2]
[339421904,1727603560226,-500.0,0.00020547,2]
[339421905,1727603560236,-500.0,0.00020547,2]
[339421906,1727603560247,-500.0,0.00020547,2]
[339421907,1727603560259,-783.43,0.00020547,2]
[339421908,1727603560270,-500.0,0.00020547,2]
[339421909,1727603560280,-500.0,0.00020547,2]
[339421910,1727603560290,-500.0,0.00020547,2]
[339421911,1727603560300,-500.0,0.00020547,2]
[339421912,1727603560311,-500.0,0.00020547,2]
[339421913,1727603560326,-500.0,0.00020547,2]
[339421914,1727603560337,-1316.7,0.00020547,2]
[339421915,1727603560349,-1112.68,0.00020547,2]
[339421916,1727603560360,-500.0,0.00020547,2]
[339421917,1727603560370,-500.0,0.00020547,2]
[339421918,1727603560379,-707.65,0.00020547,2]
[339421919,1727603560390,-3579.33,0.00020547,2]
[339421920,1727603560400,-500.0,0.00020547,2]
[339421921,1727603560412,-500.0,0.00020547,2]
[339421922,1727603560422,-500.0,0.00020547,2]
[339421923,1727603560432,-2432.83,0.00020547,2]
[339421924,1727603560442,-611.98,0.00020547,2]
[339421925,1727603560454,-3092.55,0.00020547,2]
[339421926,1727603560464,-651.21,0.00020547,2]
[339421927,1727603560474,-500.0,0.00020547,2]
[339421928,1727603560484,-500.0,0.00020547,2]
[339421929,1727603560494,-500.0,0.00020547,2]
[339421930,1727603560504,-500.0,0.00020547,2]
[339421931,1727603560514,-647.34,0.00020547,2]
[339421932,1727603560524,-500.0,0.00020547,2]
[339421933,1727603560533,-500.0,0.00020547,2]
[339421934,1727603560543,-500.0,0.00020547,2]
[339421935,1727603560555,-500.0,0.00020547,2]
[339421936,1727603560568,-3970.58,0.00020547,2]
[339421937,1727603560579,-650.41,0.00020547,2]
[339421938,1727603560589,-500.0,0.00020547,2]
[339421939,1727603560599,-500.0,0.00020547,2]
[339421940,1727603560609,-500.0,0.00020547,2]
[339421941,1727603560619,-1454.84,0.00020547,2]
[339421942,1727603560630,-157.79857942,0.00020547,2]
[339421943,1727603560641,-309.75625743,0.00020547,2]
[339421944,1727603560651,-500.0,0.00020547,2]
[339421945,1727603560662,-500.0,0.00020547,2]
[339421946,1727603560674,-500.0,0.00020547,2]
[339421947,1727603560684,-500.0,0.00020547,2]
[339421948,1727603560695,-500.0,0.00020547,2]
[339421949,1727603560706,-500.0,0.00020547,2]
[339421950,1727603560717,-500.0,0.00020547,2]
[339421951,1727603560727,-500.0,0.00020547,2]
[339421952,1727603560738,-1060.87,0.00020547,2]
[339421953,1727603560751,-500.0,0.00020547,2]
[339421954,1727603560761,-1495.54,0.00020547,2]
[339421955,1727603560774,-500.0,0.00020547,2]
[339421956,1727603560784,-500.0,0.00020547,2]
[339421957,1727603560798,-500.0,0.00020547,2]
[339421958,1727603560807,-500.0,0.00020547,2]
[339421959,1727603560819,-500.0,0.00020547,2]
[339421960,1727603560830,-500.0,0.00020547,2]
[339421961,1727603560842,-500.0,0.00020547,2]
[339421962,1727603560853,-583.48,0.00020547,2]
[339421963,1727603560865,-842.65,0.00020547,2]
[339421964,1727603560876,-229.98812054,0.00020547,2]
[339421965,1727603560886,-514.76,0.00020547,2]
[339421966,1727603560896,-3479.64,0.00020547,2]
[339421967,1727603560907,-500.0,0.00020547,2]
[339421968,1727603560918,-500.0,0.00020547,2]
[339421969,1727603560928,-500.0,0.00020547,2]
[339421970,1727603560939,-529.6,0.00020547,2]
[339421971,1727603560951,-2401.28,0.00020547,2]
[339421972,1727603560963,-686.77,0.00020547,2]
[339421973,1727603560975,-500.0,0.00020547,2]
[339421974,1727603560986,-550.44424063,0.00020547,2]
[339421975,1727603560998,-500.0,0.00020547,2]
[339421976,1727603561008,-500.0,0.00020547,2]
[339421977,1727603561019,-915.47,0.00020547,2]
[339421978,1727603561030,-347.32091305,0.00020547,2]
[339421979,1727603561040,-500.0,0.00020547,2]
[339421980,1727603561050,-500.0,0.00020547,2]
[339421981,1727603561060,-500.0,0.00020547,2]
[339421982,1727603561072,-500.0,0.00020547,2]
[339421983,1727603561083,-638.07,0.00020547,2]
[339421984,1727603561096,-500.0,0.00020547,2]
[339421985,1727603561107,-1941.22,0.00020547,2]
[339421986,1727603561118,-260.0781596,0.00020547,2]
[339421987,1727603561130,-500.0,0.00020547,2]
[339421988,1727603561140,-500.0,0.00020547,2]
[339421989,1727603561153,-625.83,0.00020547,2]
[339421990,1727603561163,-500.0,0.00020547,2]
[339421991,1727603561174,-548.99,0.00020547,2]
[339421992,1727603561184,-500.0,0.00020547,2]
[339421993,1727603561194,-500.0,0.00020547,2]
[339421994,1727603561204,-500.0,0.00020547,2]
[339421995,1727603561214,-500.0,0.00020547,2]
[339421996,1727603561224,-716.25,0.00020547,2]
[339421997,1727603561234,-500.0,0.00020547,2]
[339421998,1727603561244,-500.0,0.00020547,2]
[339421999,1727603561253,-500.0,0.00020547,2]
[339422000,1727603561263,-500.0,0.00020547,2]
[339422001,1727603561273,-413.77600451,0.00020568,2]
[339422002,1727603561283,-150.0,0.00020573,2]
[339422003,1727603561293,-5000.0,0.00020582,2]
[339422004,1727603561303,-500.0,0.00020589,2]
[339422005,1727603561312,-5059.03058756,0.0002061,2]
[339422006,1727603561322,-4281.72238113,0.0002066,7]
[339422007,1727603561332,-3500.0,0.00020677,2]
[339422008,1727603561343,-3500.0,0.00020677,2]
[339422009,1727603561353,-1500.0,0.00020731,2]
[339422010,1727603561363,-1500.0,0.00020731,2]
[339422011,1727603561373,-1443.35430254,0.00020731,2]
[339422012,1727603561383,-1500.0,0.00020731,2]
[339422013,1727603561495,-375.13485571,0.00020731,2]
[339422014,1727603561506,-1008.17032929,0.00020731,2]
[339422015,1727603561518,-1500.0,0.00020731,2]
[339422016,1727603561527,-1500.0,0.00020731,2]
[339422017,1727603561539,-500.0,0.00020821,2]
[339422018,1727603561550,-500.0,0.00020821,2]
[339422019,1727603561561,-500.0,0.00020821,2]
[339422020,1727603561571,-500.0,0.00020821,2]
[339422021,1727603561583,-500.0,0.00020821,2]
[339422022,1727603561594,-500.0,0.00020821,2]
[339422023,1727603561605,-765.39,0.00020821,2]
[339422024,1727603561615,-528.12,0.00020821,2]
[339422025,1727603561625,-500.0,0.00020821,2]
[339422026,1727603561635,-500.0,0.00020821,2]
[339422027,1727603561644,-500.0,0.00020821,2]
[339422028,1727603561654,-548.6,0.00020821,2]
[339422029,1727603561664,-593.8184589,0.00020821,2]
[339422030,1727603561674,-500.0,0.00020821,2]
[339422031,1727603561683,-426.29609092,0.00020821,2]
[339422032,1727603561693,-500.0,0.00020821,2]
[339422033,1727603561702,-500.0,0.00020821,2]
[339422034,1727603561711,-500.0,0.00020821,2]
[339422035,1727603561721,-937.7,0.00020821,2]
[339422036,1727603561730,-500.0,0.00020821,2]
[339422037,1727603561739,-500.0,0.00020821,2]
[339422038,1727603561748,-639.7,0.00020821,2]
[339422039,1727603561757,-500.0,0.00020821,2]
[339422040,1727603561766,-702.44,0.00020821,2]
[339422041,1727603561775,-500.0,0.00020821,2]
[339422042,1727603561785,-500.0,0.00020821,2]
[339422043,1727603561798,-500.0,0.00020821,2]
[339422044,1727603561806,-299.23693268,0.00020821,2]
[339422045,1727603561816,-528.10005239,0.00020821,2]
[339422046,1727603561825,-500.0,0.00020821,2]
[339422047,1727603561835,-500.0,0.00020821,2]
[339422048,1727603561844,-500.0,0.00020821,2]
[339422049,1727603561853,-500.0,0.00020821,2]
[339422050,1727603561862,-585.31,0.00020821,2]
[339422051,1727603561871,-500.0,0.00020821,2]
[339422052,1727603561880,-688.0,0.00020821,2]
[339422053,1727603561889,-500.0,0.00020821,2]
[339422054,1727603561898,-712.25,0.00020821,2]
[339422055,1727603561907,-500.0,0.00020821,2]
[339422056,1727603561917,-500.0,0.00020821,2]
[339422057,1727603561926,-500.0,0.00020821,2]
[339422058,1727603561937,-500.0,0.00020821,2]
[339422059,1727603561946,-500.0,0.00020821,2]
[339422060,1727603561955,-500.0,0.00020821,2]
[339422061,1727603561964,-559.65,0.00020821,2]
[339422062,1727603561973,-500.0,0.00020821,2]
[339422063,1727603561982,-500.0,0.00020821,2]
[339422064,1727603561991,-500.0,0.00020821,2]
[339422065,1727603562001,-519.07446842,0.00020821,2]
[339422066,1727603562010,-500.0,0.00020821,2]
[339422067,1727603562020,-453.10361052,0.00020821,2]
[339422068,1727603562030,-500.0,0.00020821,2]
[339422069,1727603562039,-500.0,0.00020821,2]
[339422070,1727603562049,-201.99241701,0.00020821,2]
[339422071,1727603562060,-500.0,0.00020821,2]
[339422072,1727603562070,-500.0,0.00020821,2]
[339422073,1727603562079,-704.84,0.00020821,2]
[339422074,1727603562088,-500.0,0.00020821,2]
[339422075,1727603562098,-637.28,0.00020821,2]
[339422076,1727603562109,-500.0,0.00020821,2]
[339422077,1727603562119,-500.0,0.00020821,2]
[339422078,1727603562130,-890.76,0.00020821,2]
[339422079,1727603562139,-672.01,0.00020821,2]
[339422080,1727603562150,-500.0,0.00020821,2]
[339422081,1727603562162,-500.0,0.00020821,2]
[339422082,1727603562173,-505.93929376,0.00020821,2]
[339422083,1727603562184,-500.0,0.00020821,2]
[339422084,1727603562195,-1041.41,0.00020821,2]
[339422085,1727603562204,-500.0,0.00020821,2]
[339422086,1727603562213,-500.0,0.00020821,2]
[339422087,1727603562222,-500.0,0.00020821,2]
[339422088,1727603562231,-574.73,0.00020821,2]
[339422089,1727603562240,-500.0,0.00020821,2]
[339422090,1727603562249,-652.65,0.00020821,2]
[339422091,1727603562258,-500.0,0.00020821,2]
[339422092,1727603562267,-507.8353431,0.00020821,2]
[339422093,1727603562276,-500.0,0.00020821,2]
[339422094,1727603562287,-500.0,0.00020821,2]
[339422095,1727603562297,-542.39,0.00020821,2]
[339422096,1727603562309,-500.0,0.00020821,2]
[339422097,1727603562320,-500.0,0.00020821,2]
[339422098,1727603562330,-500.0,0.00020821,2]
[339422099,1727603562341,-510.56,0.00020821,2]
[339422100,1727603562352,-500.0,0.00020821,2]
[339422101,1727603562363,-541.84,0.00020821,2]
[339422102,1727603562372,-500.0,0.00020821,2]
[339422103,1727603562384,-500.0,0.00020821,2]
[339422104,1727603562395,-500.0,0.00020821,2]
[339422105,1727603562406,-503.08,0.00020821,2]
[339422106,1727603562416,-1583.99,0.00020821,2]
[339422107,1727603562427,-500.0,0.00020821,2]
[339422108,1727603562437,-500.0,0.00020821,2]
[339422109,1727603562448,-500.0,0.00020821,2]
[339422110,1727603562458,-500.0,0.00020821,2]
[339422111,1727603562468,-500.0,0.00020821,2]
[339422112,1727603562484,-507.38,0.00020821,2]
[339422113,1727603562494,-500.0,0.00020821,2]
[339422114,1727603562505,-500.0,0.00020821,2]
[339422115,1727603562515,-500.0,0.00020821,2]
[339422116,1727603562526,-500.0,0.00020821,2]
[339422117,1727603562538,-551.56267099,0.00020821,2]
[339422118,1727603562548,-500.0,0.00020821,2]
[339422119,1727603562558,-563.66,0.00020821,2]
[339422120,1727603562571,-500.0,0.00020821,2]
[339422121,1727603562582,-489.97180395,0.00020821,2]
[339422122,1727603562593,-574.96,0.00020821,2]
[339422123,1727603562602,-500.0,0.00020821,2]
[339422124,1727603562612,-500.0,0.00020821,2]
[339422125,1727603562622,-500.0,0.00020821,2]
[339422126,1727603562632,-500.0,0.00020821,2]
[339422127,1727603562643,-500.0,0.00020821,2]
[339422128,1727603562653,-632.13,0.00020821,2]
[339422129,1727603562664,-500.0,0.00020821,2]
[339422130,1727603562675,-500.0,0.00020821,2]
[339422131,1727603562686,-537.86,0.00020821,2]
[339422132,1727603562697,-500.0,0.00020821,2]
[339422133,1727603562707,-500.0,0.00020821,2]
[339422134,1727603562719,-500.0,0.00020821,2]
[339422135,1727603562733,-500.0,0.00020821,2]
[339422136,1727603562745,-470.9643379,0.00020821,2]
[339422137,1727603562755,-3333.33,0.00020821,2]
[339422138,1727603562767,-1223.77,0.00020821,2]
[339422139,1727603562779,-690.51,0.00020821,2]
[339422140,1727603562793,-539.88,0.00020821,2]